Cogmind - Beta 16 @@@ ROGUE MODE // 2025.10.29 @ 18:54:27 Player: Beans Result: Self-destructed Performance ------------- Evolutions (8) 4000 Regions Visited (13) 2600 Robots Destroyed (26) 130 Value Destroyed (452) 452 Prototype IDs (10) 200 Alien Tech Used (0) 0 Bonus (35) 35 TOTAL SCORE: 7417 Bonus ------- Follower Combat Kills 35 Cogmind --------- Core Integrity 1003/1450 Matter 300/300 Energy 100/100 System Corruption 3% Temperature Cool (0) Movement Flying (40) Location -2/Research Parts ------- > --- POWER (3) -------- (None) > --- PROPULSION (8) --- Cooled Field Propulsion Drive > --- UTILITY (10) ----- Experimental Signal Interpreter Advanced Transmission Jammer Hacking Suite Hacking Suite > --- WEAPON (2) ------- (None) > --- INVENTORY (5) ---- Quantum Reactor Improved Core Shielding HERF Cannon Peak State ------------ > --- POWER ------------ Backup Power VII > --- PROPULSION ------- Combat Gravmag System Cooled Antigrav System Field Propulsion Drive Cooled Field Propulsion Drive > --- UTILITY ---------- Experimental Signal Interpreter Advanced Transmission Jammer Cloaking Device Hacking Suite Hacking Suite > --- WEAPON ----------- Enhanced Quantum Rifle > --- INVENTORY -------- HERF Cannon [Rating: 71] Favorites ----------- Power Light Ion Engine Engine Light Ion Engine Power Core Light Fission Core Reactor Light Antimatter Reactor Propulsion Flight Unit Leg Aluminum Leg Hover Unit Combat Gravmag System Flight Unit Flight Unit Utility Hacking Suite Device Improved Terrain Scanner Storage Small Storage Unit Processor Improved Terrain Scan Processor Hackware Hacking Suite Weapon Medium Laser Energy Gun Medium Laser Energy Cannon HERF Cannon Launcher Grenade Launcher Impact Weapon Mace Build | -11 -10 -10 -9 -9 -8 -7 -6 -5 -5 -5 -4 -3 -2 ------- Run | Yrd Mat Min Mat Min Mat Fac Fac Fac Upp Upp Fac Res Res Slots Evolved 16 | . . . 2 . 2 2 2 2 . . 2 2 2 Power 2 | . . . . . . . 1 . . . . 1 . Propulsion 6 | . . . 1 . . 1 1 1 . . 1 1 . Utility 8 | . . . 1 . 2 1 . 1 . . 1 . 2 Weapon . | . . . . . . . . . . . . . . Parts Attached 53 | 7 1 2 9 3 3 4 4 2 1 . 1 6 10 Power 8 | 1 . . 1 . 1 . 1 1 . . . 2 1 Engine 4 | 1 . . 1 . 1 . 1 . . . . . . Core 3 | . . . . . . . . 1 . . . 1 1 Reactor 1 | . . . . . . . . . . . . 1 . Propulsion 16 | 2 . 1 4 . . 1 . . . . . 4 4 Treads . | . . . . . . . . . . . . . . Leg 6 | 2 . 1 . . . . . . . . . 3 . Wheel . | . . . . . . . . . . . . . . Hover 3 | . . . . . . . . . . . . 1 2 Flight 7 | . . . 4 . . 1 . . . . . . 2 Utility 21 | 2 1 1 2 2 1 3 3 1 1 . 1 . 3 Device 13 | 1 1 1 2 2 . 1 3 . . . 1 . 1 Storage 1 | 1 . . . . . . . . . . . . . Processor 4 | . . . . . . 2 . . 1 . . . 1 Hackware 3 | . . . . . 1 . . 1 . . . . 1 Protection . | . . . . . . . . . . . . . . Artifact . | . . . . . . . . . . . . . . Weapon 8 | 2 . . 2 1 1 . . . . . . . 2 Energy Gun 3 | 2 . . . . . . . . . . . . 1 Energy Cannon 1 | . . . . . . . . . . . . . 1 Ballistic Gun . | . . . . . . . . . . . . . . Ballistic Cannon . | . . . . . . . . . . . . . . Launcher 2 | . . . . 1 1 . . . . . . . . Special Weapon . | . . . . . . . . . . . . . . Impact Weapon 2 | . . . 2 . . . . . . . . . . Slashing Weapon . | . . . . . . . . . . . . . . Piercing Weapon . | . . . . . . . . . . . . . . Special Melee Weapon . | . . . . . . . . . . . . . . Unidentified Prototypes 4 | . . . . . . . . . . . . 1 3 Parts Lost 25 | . . 1 4 . 2 . . . . . 1 10 7 Power 3 | . . . . . . . . . . . . 2 1 Propulsion 13 | . . 1 3 . 1 . . . . . . 4 4 Utility 6 | . . . . . . . . . . . 1 4 1 Weapon 3 | . . . 1 . 1 . . . . . . . 1 Highest Loss Streak 10 | . . 1 2 . 1 . . . . . 1 10 3 To Critical Strikes . | . . . . . . . . . . . . . . Average Backups 4 | 1 3 7 7 4 4 4 4 4 4 5 5 4 1 Power 1 | . 1 1 1 1 1 1 . . 1 1 1 2 . Propulsion . | . . . . . 1 . . . . . . . . Utility 1 | . . 2 1 . . 1 2 2 2 3 3 1 . Weapon 1 | . 1 2 2 2 1 1 1 1 . 1 1 . . Tool/Special . | . . . . . . . . . . . . . . Unused Backups 11 | . . . 5 . . 1 1 . . . . 2 2 Power 3 | . . . 2 . . . . . . . . . 1 Propulsion . | . . . . . . . . . . . . . . Utility 6 | . . . 1 . . 1 1 . . . . 2 1 Weapon 1 | . . . 1 . . . . . . . . . . Tool/Special 1 | . . . 1 . . . . . . . . . . Average Slot Usage (%) 71 | . 100 99 81 73 66 55 69 70 69 70 66 46 36 Engine 6 | . 14 14 11 11 9 7 7 5 . . . . . Core 1 | . . . . . . . . 2 5 5 5 3 2 Leg 7 | . 28 27 16 . . . . . . . . 1 . Flight 11 | . . . 5 33 27 16 15 17 17 17 15 10 5 Device 16 | . 14 14 18 16 18 15 20 23 23 23 24 15 6 Storage 4 | . 14 14 9 . . . . . . . . . . Processor 3 | . . . . . . 5 12 5 4 5 5 3 3 Hackware 4 | . . . . . 3 7 6 8 11 11 10 7 7 Energy Gun 9 | . 28 28 4 2 1 2 6 5 5 5 5 2 1 Impact Weapon 1 | . . . 16 . . . . . . . . . . Peak Build Rating 71 | 9 9 10 16 15 19 22 27 35 37 37 44 52 71 Average Rating 24 | 5 8 8 13 12 16 16 23 31 36 37 42 35 54 On Entrance 19 | . 9 7 10 9 15 17 18 27 35 37 37 39 12 Avg Prop Armor Cover (%) 15 | . . . . . . 3 . . . . . . 16 Naked Turns . | . . . . . . . . . . . . . . Heaviest Build 24 | 15 15 15 24 11 12 9 13 14 14 14 15 14 17 Greatest Support 75 | 20 20 20 20 12 13 10 15 15 15 15 15 75 27 Greatest Overweight (x) 5 | 3 . 1 5 . . . . . . . . 3 . Average Overweight (x) . | . . . . . . . . . . . . . . Largest Inventory Capacity 8 | 8 8 8 8 5 5 5 5 5 5 5 5 5 5 Average Capacity 5 | 7 8 8 7 5 5 5 5 5 5 5 5 5 5 Most Carried 8 | 2 5 8 8 5 5 5 5 5 5 5 5 5 4 Average Carried 4 | 1 3 7 7 4 4 4 4 4 4 5 5 4 1 Final Capacity 8 | 8 8 8 5 5 5 5 5 5 5 5 5 5 5 Final Carried 8 | 2 5 8 4 5 4 5 3 5 5 5 5 5 3 Scrap Suit Usage (%) 11 | . . . . 70 100 64 . . . . . . . Class Distribution -------------------- 39% | Mutant 25% | Hacker-Scout 9% | Hacker-Mutant 9% | Sprinter 5% | Gladiator 4% | Scientist-Mutant 3% | Scientist-Sprinter 3% | Scientist-Scout Dominant Class ---------------- Mutant | -10/Materials Mutant | -10/Mines Gladiator | -9/Materials Sprinter | -9/Mines Sprinter | -8/Materials Mutant | -7/Factory Scientist-Mutant | -6/Factory Hacker-Scout | -5/Factory Hacker-Scout | -5/Upper Caves Hacker-Scout | -5/Upper Caves Hacker-Scout | -4/Factory Hacker-Scout | -3/Research Hacker-Mutant | -2/Research Resources | -11 -10 -10 -9 -9 -8 -7 -6 -5 -5 -5 -4 -3 -2 ----------- Run | Yrd Mat Min Mat Min Mat Fac Fac Fac Upp Upp Fac Res Res Matter Collected 908 | 189 83 20 69 53 2 40 16 103 110 36 . . 187 Remotely . | . . . . . . . . . . . . . . Salvage Created 621 | 12 90 198 86 61 15 40 16 103 . . . . . Parts 40 | 2 2 9 10 9 4 2 2 . . . . . . Haulers Intercepted 2 | . . . . . . 1 . 1 . . . . . Recyclers Shooed 1 | 1 . . . . . . . . . . . . . Parts Field Recycled . | . . . . . . . . . . . . . . Retrieved Matter . | . . . . . . . . . . . . . . Parts Self-Destructed 3 | . . . . . . . . . 3 . . . . Prevented . | . . . . . . . . . . . . . . Parts Restored . | . . . . . . . . . . . . . . Kills | -11 -10 -10 -9 -9 -8 -7 -6 -5 -5 -5 -4 -3 -2 ------- Run | Yrd Mat Min Mat Min Mat Fac Fac Fac Upp Upp Fac Res Res Combat Hostiles Destroyed 20 | . 2 5 4 5 4 . . . . . . . . Melee 4 | . . . 4 . . . . . . . . . . Guns 6 | . 1 5 . . . . . . . . . . . AOE 9 | . . . . 5 4 . . . . . . . . Classes Destroyed 10 | 1 1 2 1 3 1 1 . . . . . . . Worker 2 | . . . . 1 1 . . . . . . . . Builder 1 | . . . . 1 . . . . . . . . . Tunneler 2 | 1 . . . . . . 1 . . . . . . Hauler 2 | . . . . . . 1 . 1 . . . . . Recycler 1 | . . 1 . . . . . . . . . . . Operator 1 | . . . . . 1 . . . . . . . . Swarmer 11 | . . 3 3 2 3 . . . . . . . . Grunt 4 | . 2 2 . . . . . . . . . . . Sentry 2 | . . . 1 . 1 . . . . . . . . Assembled 3 | . . . . 3 . . . . . . . . . Best Kill Streak 6 | 1 2 6 3 5 6 1 1 1 . . . . . Combat Bots Only 5 | . 2 5 3 3 4 . . . . . . . . Max Kills in Single Turn 3 | 1 1 1 1 2 3 1 1 1 . . . . . Gunslinging . | . . . . . . . . . . . . . . Exploded 3 | . . . . 2 3 . . . . . . . . Melee 1 | . . . 1 . . . . . . . . . . Uniques/NPCs Destroyed . | . . . . . . . . . . . . . . Combat | -11 -10 -10 -9 -9 -8 -7 -6 -5 -5 -5 -4 -3 -2 -------- Run | Yrd Mat Min Mat Min Mat Fac Fac Fac Upp Upp Fac Res Res Hostile Shots Fired 358 | . 12 45 62 11 22 3 7 4 . . 3 95 94 Missed 153 | . 6 15 16 6 11 . 6 2 . . 2 36 53 Hits 205 | . 6 30 46 5 11 3 1 2 . . 1 59 41 Projectile 205 | . 6 30 46 5 11 3 1 2 . . 1 59 41 AOE 1 | . . . . . . . . . . . . 1 . Critical Strikes 7 | . . . 1 . . . . . . . . 4 2 Damage Taken 3700 | . 94 289 475 92 297 51 . 38 . . 24 1305 1035 Core 1322 | . 17 61 61 18 14 36 . 19 . . . 649 447 Absorbed by Shields . | . . . . . . . . . . . . . . Core Remaining (%) 87 | 100 . 68 . 80 97 94 100 . . 98 100 50 . Volleys Fired 96 | 8 8 19 . 7 12 9 12 15 . . 1 . 5 Largest 2 | 2 2 2 . 1 1 1 1 1 . . 1 . 1 Hottest 100 | 100 100 100 . 30 33 50 50 50 . . 50 . 65 Shots Fired 131 | 16 16 38 . 7 12 9 12 15 . . 1 . 5 Gun 112 | 16 16 38 . . . 9 12 15 . . 1 . 5 Cannon . | . . . . . . . . . . . . . . Launcher 19 | . . . . 7 12 . . . . . . . . Special . | . . . . . . . . . . . . . . Kinetic . | . . . . . . . . . . . . . . Thermal 112 | 16 16 38 . . . 9 12 15 . . 1 . 5 Explosive 19 | . . . . 7 12 . . . . . . . . Electromagnetic . | . . . . . . . . . . . . . . Robot Hit Streak 14 | 4 6 6 . 1 6 4 6 14 . . . . 1 Robot Miss Streak 5 | 5 1 2 . 2 3 1 3 2 . . 3 . 4 Penetration Max . | . . . . . . . . . . . . . . Secondary Targets 2 | . . 2 . . . . . . . . . . . Max Gunslinging Chain 1 | . . 1 . . . . . . . . . . . Shots Hit Robots 86 | 6 12 24 8 2 7 7 6 13 . . . . 1 Core Hits 49 | 1 3 10 4 9 13 2 3 4 . . . . . Critical Kills 1 | . . . 1 . . . . . . . . . . Critical Parts Destroyed 1 | . . . 1 . . . . . . . . . . Critical Strikes 6 | . 1 1 2 . . 1 . 1 . . . . . Burn 4 | . 1 1 . . . 1 . 1 . . . . . Smash 2 | . . . 2 . . . . . . . . . . Melee Attacks 13 | . . . 13 . . . . . . . . . . Impact 13 | . . . 13 . . . . . . . . . . Slashing . | . . . . . . . . . . . . . . Piercing . | . . . . . . . . . . . . . . Sneak Attacks . | . . . . . . . . . . . . . . Combat Hostiles . | . . . . . . . . . . . . . . Follow-up Attacks 2 | . . . 2 . . . . . . . . . . Damage Inflicted 1790 | 75 159 300 234 249 406 88 75 164 . . . . 40 Guns 892 | 75 150 300 . . . 88 75 164 . . . . 40 Cannons . | . . . . . . . . . . . . . . Explosions 653 | . . . . 249 404 . . . . . . . . Melee 234 | . . . 234 . . . . . . . . . . Ramming 11 | . 9 . . . 2 . . . . . . . . Kinetic . | . . . . . . . . . . . . . . Thermal 892 | 75 150 300 . . . 88 75 164 . . . . 40 Explosive 653 | . . . . 249 404 . . . . . . . . Electromagnetic . | . . . . . . . . . . . . . . Impact 234 | . . . 234 . . . . . . . . . . Slashing . | . . . . . . . . . . . . . . Piercing . | . . . . . . . . . . . . . . Highest Corruption 3 | . . . . . . . . . . . . 1 3 Average Corruption 2 | . . . . . . . . . . . . 1 2 Corruption Purged . | . . . . . . . . . . . . . . Corruption Blocked . | . . . . . . . . . . . . . . Effects 1 | . . . . . . . . . . . . . 1 Message Errors 1 | . . . . . . . . . . . . . 1 Overload Shots . | . . . . . . . . . . . . . . Overflow Damage 49 | . . . 49 . . . . . . . . . . Projectiles . | . . . . . . . . . . . . . . Explosions . | . . . . . . . . . . . . . . Melee 49 | . . . 49 . . . . . . . . . . Knockbacks 1 | . 1 . . . . . . . . . . . . Impact 1 | . 1 . . . . . . . . . . . . Kinetic . | . . . . . . . . . . . . . . Secondary . | . . . . . . . . . . . . . . Self-Inflicted Damage 95 | . . . . 30 65 . . . . . . . . Shots 4 | . . . . 2 2 . . . . . . . . Rammed 1 | . . . . . 1 . . . . . . . . Targets Rammed 4 | . 3 . . . 1 . . . . . . . . Kicked 3 | . 3 . . . . . . . . . . . . Crushed . | . . . . . . . . . . . . . . Highest Temperature 366 | 117 366 225 4 . . . 8 7 . . . 246 364 Average Temperature 115 | 55 194 122 4 . . . 3 4 . . . 131 194 Received Heat Transfer 1286 | . 54 54 93 . 36 27 . 18 . . . 135 869 Siege Activations . | . . . . . . . . . . . . . . Martial Activations . | . . . . . . . . . . . . . . Shielding Activations . | . . . . . . . . . . . . . . Robots Disrupted . | . . . . . . . . . . . . . . Combat Hostiles . | . . . . . . . . . . . . . . Robots Corrupted . | . . . . . . . . . . . . . . Combat Hostiles . | . . . . . . . . . . . . . . Parts Fried . | . . . . . . . . . . . . . . Impact Corruptions 2 | . . . 2 . . . . . . . . . . Robots Melted 1 | . 1 . . . . . . . . . . . . Combat Hostiles 1 | . 1 . . . . . . . . . . . . Parts Melted 7 | . 1 1 . . . 1 . 4 . . . . . Heat Transferred 2849 | 222 518 962 . . . 333 222 555 . . . . 37 Parts Sabotaged . | . . . . . . . . . . . . . . Parts Stolen . | . . . . . . . . . . . . . . Parts Stripped . | . . . . . . . . . . . . . . Power Chain Reactions . | . . . . . . . . . . . . . . Alert | -11 -10 -10 -9 -9 -8 -7 -6 -5 -5 -5 -4 -3 -2 ------- Run | Yrd Mat Min Mat Min Mat Fac Fac Fac Upp Upp Fac Res Res Maximum Alert Level 1 | . . . . . 1 . . . . . . . . Low Security (%) 99 | 100 100 100 100 100 77 100 100 100 . . 100 100 100 Level 1 . | . . . . . 22 . . . . . . . . Level 2 . | . . . . . . . . . . . . . . Level 3 . | . . . . . . . . . . . . . . Level 4 . | . . . . . . . . . . . . . . Level 5 . | . . . . . . . . . . . . . . High Security . | . . . . . . . . . . . . . . Max Security . | . . . . . . . . . . . . . . Peak Influence 237 | 5 51 95 45 61 237 85 22 7 . . . 21 85 Initial 85 | . . 4 . 1 13 85 6 . . . . . . Average 18 | . 12 22 11 37 83 50 3 . . . . 2 27 Influence Increases 989 | 5 57 125 105 95 285 8 70 7 . . . 37 195 Destroy 0b10 Robot/C 360 | . 40 100 80 40 100 . . . . . . . . Destroy 0b10 Robot/NC 45 | 5 . 5 . 10 10 5 5 5 . . . . . Destroy Leader 74 | . 10 20 10 10 20 2 . 2 . . . . . Allied During Kill 13 | . . . . . 13 . . . . . . . . Successful Hack 109 | . 6 . . . . 1 65 . . . . 37 . Disable Machine 45 | . . . . . 30 . . . . . . . 15 Destroy Structure 118 | . 1 . . 35 82 . . . . . . . . Partial Spotted 75 | . . . . . 30 . . . . . . . 45 Lose Combat Pursuer 150 | . . . 15 . . . . . . . . . 135 Influence Decreases 934 | 5 46 136 100 65 132 183 83 7 . . . 37 140 Entered New Map 143 | . . 7 . 4 22 103 7 . . . . . . Time Decay 640 | 5 46 119 70 61 50 80 76 7 . . . 36 90 Lost Part 110 | . . 10 30 . 20 . . . . . . . 50 Lost Ally 40 | . . . . . 40 . . . . . . . . Purge Threat 1 | . . . . . . . . . . . . 1 . Squads Dispatched 12 | . 1 . . . 1 2 1 2 . . . 1 4 Investigation 4 | . . . . . . 2 . 1 . . . . 1 Extermination 2 | . . . . . . . . . . . . 1 1 Reinforcement 6 | . 1 . . . 1 . 1 1 . . . . 2 Assault . | . . . . . . . . . . . . . . Garrison . | . . . . . . . . . . . . . . Intercept . | . . . . . . . . . . . . . . Searches Triggered . | . . . . . . . . . . . . . . Construction Impeded . | . . . . . . . . . . . . . . Haulers Reinforced . | . . . . . . . . . . . . . . Active Scanning Responses . | . . . . . . . . . . . . . . Cargo Convoy Interrupts . | . . . . . . . . . . . . . . Stealth | -11 -10 -10 -9 -9 -8 -7 -6 -5 -5 -5 -4 -3 -2 --------- Run | Yrd Mat Min Mat Min Mat Fac Fac Fac Upp Upp Fac Res Res Distress Signals 6 | . . . . . 3 . 1 1 . . . . 1 Communications Jammed . | . . . . . . . . . . . . . . Distress Signals . | . . . . . . . . . . . . . . Times Spotted 98 | . 2 5 10 12 19 3 8 6 2 . 2 6 23 Peak Tracking Total 16 | . 2 4 4 16 11 2 6 4 2 . 2 5 12 Tactical Retreats 12 | . . . 1 1 . . 1 1 2 . . . 6 ECM-based Alert Blocks 6 | . . . . . . . 1 1 4 . . . . Traps | -11 -10 -10 -9 -9 -8 -7 -6 -5 -5 -5 -4 -3 -2 ------- Run | Yrd Mat Min Mat Min Mat Fac Fac Fac Upp Upp Fac Res Res Traps Triggered 1 | . . . . . . . . . . . . . 1 Indirectly . | . . . . . . . . . . . . . . Trap Hack Attempts . | . . . . . . . . . . . . . . Triggered . | . . . . . . . . . . . . . . Disarmed . | . . . . . . . . . . . . . . Reprogrammed . | . . . . . . . . . . . . . . Reused . | . . . . . . . . . . . . . . Traps Extracted . | . . . . . . . . . . . . . . Installed . | . . . . . . . . . . . . . . Triggered . | . . . . . . . . . . . . . . Machines | -11 -10 -10 -9 -9 -8 -7 -6 -5 -5 -5 -4 -3 -2 ---------- Run | Yrd Mat Min Mat Min Mat Fac Fac Fac Upp Upp Fac Res Res Machines Disabled 3 | . . . . . 2 . . . . . . . 1 Max in Single Turn 1 | . . . . . 1 . . . . . . . 1 Machines Repaired . | . . . . . . . . . . . . . . Machines Dismantled . | . . . . . . . . . . . . . . Machines Sabotaged . | . . . . . . . . . . . . . . Overloaded Fab Kills . | . . . . . . . . . . . . . . Hacking | -11 -10 -10 -9 -9 -8 -7 -6 -5 -5 -5 -4 -3 -2 --------- Run | Yrd Mat Min Mat Min Mat Fac Fac Fac Upp Upp Fac Res Res Machines Accessed 20 | . 2 . . . 2 2 9 2 1 . . 2 . Terminals 11 | . 1 . . . 1 1 6 1 . . . 1 . Fabricators . | . . . . . . . . . . . . . . Repair Stations 3 | . . . . . . . 1 1 . . . 1 . Recycling Units 1 | . 1 . . . . . . . . . . . . Scanalyzers 4 | . . . . . 1 1 2 . . . . . . Garrison Access . | . . . . . . . . . . . . . . Total Hacks 49 | . 4 . . . 5 8 22 5 1 . . 4 . Successful 28 | . 2 . . . 3 6 11 2 1 . . 3 . Failed 21 | . 2 . . . 2 2 11 3 . . . 1 . Catastrophic 2 | . . . . . . . 1 1 . . . . . Database Lockouts . | . . . . . . . . . . . . . . Manual 14 | . 3 . . . 2 2 4 1 . . . 2 . Terminals 24 | . 3 . . . 2 2 13 1 . . . 3 . Fabricators . | . . . . . . . . . . . . . . Repair Stations 8 | . . . . . . . 3 4 . . . 1 . Recycling Units 1 | . 1 . . . . . . . . . . . . Scanalyzers 15 | . . . . . 3 6 6 . . . . . . Garrison Access . | . . . . . . . . . . . . . . Terminal Hacks 9 | . 1 . . . . . 5 . 1 . . 2 . Record 1 | . . . . . . . 1 . . . . . . Prototype ID Bank 2 | . . . . . . . 2 . . . . . . Open Door 1 | . . . . . . . . . 1 . . . . Level Access Points 1 | . . . . . . . 1 . . . . . . Terminal Index 1 | . 1 . . . . . . . . . . . . Scanalyzer Index 1 | . . . . . . . 1 . . . . . . Unreport Threat 1 | . . . . . . . . . . . . 1 . Hauler Manifests 1 | . . . . . . . . . . . . 1 . Fabricator Hacks . | . . . . . . . . . . . . . . Repair Station Hacks 5 | . . . . . . . 2 2 . . . 1 . Scan Component 2 | . . . . . . . 1 1 . . . . . Repair 2 | . . . . . . . 1 1 . . . . . Refit 1 | . . . . . . . . . . . . 1 . Recycling Unit Hacks . | . . . . . . . . . . . . . . Scanalyzer 13 | . . . . . 3 6 4 . . . . . . Insert Component 5 | . . . . . 1 2 2 . . . . . . Analyze 4 | . . . . . 1 2 1 . . . . . . Retrieve Study 4 | . . . . . 1 2 1 . . . . . . Garrison Access Hacks . | . . . . . . . . . . . . . . Unauthorized Hacks 1 | . 1 . . . . . . . . . . . . Terminals 1 | . 1 . . . . . . . . . . . . Botnet 1 | . 1 . . . . . . . . . . . . Fabricators . | . . . . . . . . . . . . . . Repair Stations . | . . . . . . . . . . . . . . Recycling Units . | . . . . . . . . . . . . . . Scanalyzers . | . . . . . . . . . . . . . . Garrison Access . | . . . . . . . . . . . . . . Data Cores Recovered . | . . . . . . . . . . . . . . Used . | . . . . . . . . . . . . . . Hacking Detections 18 | . 2 . . . 2 2 8 2 . . . 2 . Full Trace Events 3 | . . . . . . 2 . 1 . . . . . Feedback Events . | . . . . . . . . . . . . . . Feedback Blocked . | . . . . . . . . . . . . . . Robot Schematics Acquired . | . . . . . . . . . . . . . . Robots Built . | . . . . . . . . . . . . . . Authchips . | . . . . . . . . . . . . . . Time . | . . . . . . . . . . . . . . Total Robot Build Rating . | . . . . . . . . . . . . . . Part Schematics Acquired 4 | . . . . . 1 2 1 . . . . . . Parts Built . | . . . . . . . . . . . . . . Authchips . | . . . . . . . . . . . . . . Time . | . . . . . . . . . . . . . . Total Part Build Rating . | . . . . . . . . . . . . . . Part Studies Acquired 4 | . . . . . 1 2 1 . . . . . . Parts Repaired 2 | . . . . . . . 1 1 . . . . . Time 106 | . . . . . . . 36 70 . . . . . Parts Recycled . | . . . . . . . . . . . . . . Recycled Matter . | . . . . . . . . . . . . . . Retrieved Matter . | . . . . . . . . . . . . . . Retrieved Components . | . . . . . . . . . . . . . . Parts Scanalyzed 5 | . . . . . 1 2 2 . . . . . . Part Schematics Acquired 4 | . . . . . 1 2 1 . . . . . . Parts Damaged 1 | . . . . . . . 1 . . . . . . Bothacking | -11 -10 -10 -9 -9 -8 -7 -6 -5 -5 -5 -4 -3 -2 ------------ Run | Yrd Mat Min Mat Min Mat Fac Fac Fac Upp Upp Fac Res Res Used RIF Installer . | . . . . . . . . . . . . . . Robots Hacked . | . . . . . . . . . . . . . . Non-combat . | . . . . . . . . . . . . . . Combat . | . . . . . . . . . . . . . . Robot Hacks Applied . | . . . . . . . . . . . . . . Relay Couplers Released . | . . . . . . . . . . . . . . Fabnet Peak Effective % . | . . . . . . . . . . . . . . Robots Rewired . | . . . . . . . . . . . . . . Allies Hacked . | . . . . . . . . . . . . . . Hacks Repelled . | . . . . . . . . . . . . . . Allies | -11 -10 -10 -9 -9 -8 -7 -6 -5 -5 -5 -4 -3 -2 -------- Run | Yrd Mat Min Mat Min Mat Fac Fac Fac Upp Upp Fac Res Res Total Allies 2 | . . . . 2 . . . . . . . . . Largest Group 2 | . . . . 2 2 . . . . . . . . Highest-Rated Group 48 | . . . . 48 48 . . . . . . . . Highest-Rated Ally 31 | . . . . 31 31 . . . . . . . . Total Orders . | . . . . . . . . . . . . . . Ally Attacks 8 | . . . . . 8 . . . . . . . . Total Damage 87 | . . . . . 87 . . . . . . . . Kills 1 | . . . . . 1 . . . . . . . . Allies Corrupted . | . . . . . . . . . . . . . . Allies Melted . | . . . . . . . . . . . . . . Intel | -11 -10 -10 -9 -9 -8 -7 -6 -5 -5 -5 -4 -3 -2 ------- Run | Yrd Mat Min Mat Min Mat Fac Fac Fac Upp Upp Fac Res Res Active Infowar (turns) 1548 | 17 119 . 44 . . 63 292 152 296 40 119 226 180 Sensors 834 | . . . . . . . 20 152 296 40 119 207 . Terrain 1352 | 17 119 . 44 . . 63 292 152 296 40 119 210 . Cloaking 180 | . . . . . . . . . . . . . 180 Jamming 354 | . . . . . . . . . . . 112 226 16 ECM 763 | . . . . . . . 250 152 296 40 25 . . Robot Analysis Total . | . . . . . . . . . . . . . . Derelict Logs Recovered 6 | . . 1 . 1 . . . . 3 1 . . . Drone Launches . | . . . . . . . . . . . . . . Drone Recoveries . | . . . . . . . . . . . . . . Exploration | -11 -10 -10 -9 -9 -8 -7 -6 -5 -5 -5 -4 -3 -2 ------------- Run | Yrd Mat Min Mat Min Mat Fac Fac Fac Upp Upp Fac Res Res Turns Passed 2831 | 117 182 443 232 155 102 162 292 152 296 40 119 277 262 Spaces Moved 4312 | 66 123 308 155 232 220 304 627 165 753 125 127 505 602 Core 26 | 8 . . . . . . . . . . . 18 . Treads . | . . . . . . . . . . . . . . Legs 602 | 58 123 308 83 . . . . . . . . 30 . Wheels . | . . . . . . . . . . . . . . Hover 72 | . . . . . . . . . . . . 15 57 Flight 3612 | . . . 72 232 220 304 627 165 753 125 127 442 545 Fastest Speed 32 | 50 120 120 32 32 32 34 32 32 32 32 32 32 34 Average Speed 47 | 119 120 122 107 32 32 34 33 32 32 32 32 39 39 Slowest Speed 440 | 200 120 190 440 32 32 34 34 32 32 32 32 200 61 Overloaded Moves . | . . . . . . . . . . . . . . Propulsion Burnouts . | . . . . . . . . . . . . . . Robots Hopped 47 | . . . 3 3 4 6 10 3 . . 1 3 14 Potential Cave-ins . | . . . . . . . . . . . . . . Cave-ins Triggered . | . . . . . . . . . . . . . . Exploration Rate (%) 25 | 5 26 61 18 53 21 7 19 4 79 20 3 13 27 Regions Visited 13 Branch Regions 4 Pre-discovered Areas 1 | . . 1 . . . . . . . . . . . Known Exits Taken 5 | . . . . . 1 . 1 . 1 1 1 . . Unknown Exits Taken 8 | 1 1 1 1 1 . 1 . 1 . . . 1 . Scrap Searched 4 | . . 1 . 1 . . . . 1 1 . . . Spaces Dug . | . . . . . . . . . . . . . . Terrain Destroyed 155 | . . . . 46 109 . . . . . . . . Melee . | . . . . . . . . . . . . . . Projectile . | . . . . . . . . . . . . . . AOE 155 | . . . . 46 109 . . . . . . . . Terrain Rammed . | . . . . . . . . . . . . . . Walls Destroyed . | . . . . . . . . . . . . . . Machines Disabled . | . . . . . . . . . . . . . . Actions | -11 -10 -10 -9 -9 -8 -7 -6 -5 -5 -5 -4 -3 -2 --------- Run | Yrd Mat Min Mat Min Mat Fac Fac Fac Upp Upp Fac Res Res Total 4896 | 85 141 333 199 304 234 347 687 245 808 124 202 580 607 Wait 399 | 3 4 3 9 55 . 28 50 62 51 . 75 59 . Move 4206 | 65 122 307 148 225 212 291 606 158 752 124 124 498 574 Hop 47 | . . . 3 3 4 6 10 3 . . 1 3 14 Pick Up 29 | 2 2 2 5 3 1 3 1 3 2 . . 3 2 Fast Attach 39 | 7 1 1 6 2 1 3 4 2 . . 1 5 6 Attach 16 | . . . 3 2 1 2 1 . 1 . . 1 5 Detach 15 | . 1 . 2 3 . 3 1 . 1 . . 3 1 Swap 5 | . . 1 2 . 2 . . . . . . . . Drop 30 | . . . 10 4 1 2 2 2 1 . . 8 . Fire 96 | 8 8 19 . 7 12 9 12 15 . . 1 . 5 Melee 11 | . . . 11 . . . . . . . . . . Ram . | . . . . . . . . . . . . . . Kick 3 | . 3 . . . . . . . . . . . . Crush . | . . . . . . . . . . . . . . Escape Stasis . | . . . . . . . . . . . . . . Rewire . | . . . . . . . . . . . . . . Trap . | . . . . . . . . . . . . . . Miscellaneous . | . . . . . . . . . . . . . . Route ------- -11/Scrapyard -10/Materials -10/Mines -9/Materials -9/Mines -8/Materials (discovered 2 exits: *Fac x2) -7/Factory -6/Factory (discovered 4 exits: *Fac x4) -5/Factory -5/Upper Caves -5/Upper Caves -4/Factory (discovered 2 exits: *Res / Upp) -3/Research -2/Research History --------- Turn | Location | Event 18 | -11/Scrapyard | Discovered new exit (range 15) 118 | -11/Scrapyard | Entered Materials 290 | -10/Materials | Discovered new exit (range 10) 300 | -10/Materials | Entered Mines 316 | -10/Mines | Build established: Mutant 684 | -10/Mines | Discovered new exit (range 14) 721 | -10/Mines | Learned location of Storage (-9) 743 | -10/Mines | Entered Materials 743 | -9/Materials | Evolved 2 slots: Propulsion x1, Utility x1 969 | -9/Materials | Discovered new exit (range 16) 975 | -9/Materials | Entered Mines 983 | -9/Mines | Assembled infested the area 989 | -9/Mines | Learned location of 1 exit from Materials 1018 | -9/Mines | Found a Scrap Suit stashed away for nefarious purposes 1020 | -9/Mines | Found Scrap Suit 1048 | -9/Mines | Discovered new exit (range 12) 1058 | -9/Mines | Received a Rocket Launcher from a helpful Derelict 1130 | -9/Mines | Entered Materials 1130 | -8/Materials | Accompanied by 2 allies 1130 | -8/Materials | Evolved 2 slots: Utility x2 1131 | -8/Materials | Identified exit to Factory 1135 | -8/Materials | Led the pair of lost Derelicts to an unsafe place 1223 | -8/Materials | Discovered exit to Factory (range 16) 1232 | -8/Materials | Entered Factory 1232 | -7/Factory | Evolved 2 slots: Propulsion x1, Utility x1 1362 | -7/Factory | Discovered new exit (range 8) 1394 | -7/Factory | Entered another Factory area 1394 | -6/Factory | Evolved 2 slots: Power x1, Propulsion x1 1491 | -6/Factory | Identified exit to Factory 1566 | -6/Factory | Repaired Broken Flight Unit+ 1678 | -6/Factory | Spotted B-75 Beast 1686 | -6/Factory | Entered another Factory area 1686 | -5/Factory | Evolved 2 slots: Propulsion x1, Utility x1 1707 | -5/Factory | Discovered new exit (range 4) 1833 | -5/Factory | Repaired Broken Adv. Signal Interpreter 1838 | -5/Factory | Entered Upper Caves 1848 | -5/Upper Caves | Learned Factory security intel 1868 | -5/Upper Caves | Learned Factory terminal intel 1870 | -5/Upper Caves | Encountered a Warlord checkpoint 1873 | -5/Upper Caves | Learned 4 Factory zone layouts 2045 | -5/Upper Caves | Build established: Hacker-Scout 2130 | -5/Upper Caves | Discovered new exit (range 13) 2134 | -5/Upper Caves | Identified exit to Upper Caves 2134 | -5/Upper Caves | Entered another Upper Caves area 2173 | -5/Upper Caves | Discovered new exit (range 6) 2173 | -5/Upper Caves | Learned Factory trap positions 2174 | -5/Upper Caves | Identified exit to Factory 2174 | -5/Upper Caves | Entered Factory 2174 | -4/Factory | Evolved 2 slots: Propulsion x1, Utility x1 2175 | -4/Factory | Identified exit to Upper Caves 2176 | -4/Factory | Loaded intel: 115 trap records 2178 | -4/Factory | Loaded intel: 27 terminal locations 2274 | -4/Factory | Discovered new exit (range 15) 2293 | -4/Factory | Identified exit to Research 2293 | -4/Factory | Entered Research 2293 | -3/Research | Evolved 2 slots: Power x1, Propulsion x1 2476 | -3/Research | Spotted B-86 Titan 2531 | -3/Research | Discovered new exit (range 9) 2570 | -3/Research | Entered another Research area 2570 | -2/Research | Evolved 2 slots: Utility x2 2587 | -2/Research | Found Prototype Processor 2587 | -2/Research | Identified Exp. Signal Interpreter 2596 | -2/Research | Lost 10 parts (2p4n4u) 2741 | -2/Research | Spotted B-90 Cyclops 2787 | -2/Research | Lost 3 parts (1p1n1u) 2832 | -2/Research | Self-destructed Last Messages --------------- 02756_ R-10 Processor collects Terrain Scanner. 02769_ Drone sends a signal. 02769_ Acquired Imp. Core Shielding. 02770_ Critical hit (Meltdown: +380). 02779_ Potential Refractor disabled. 02783_ Penetrated by Slug. 02783_ Slug penetrates Wall. 02784_ Slug penetrates Terminal. 02786_ Slug penetrates Wall. 02786_ Penetrated by Slug. 02788_ K-01 Serf cleans the Particle Synthesizer. 02795_ Slug penetrates Wall. 02812_ Acquired Quantum Reactor. 02813_ Enh. Quantum Rifle destroyed. 02815_ GK&V,KRWRPIK>VMJ>08C BZGRG|HTS:% 02815_ K-01 Serf destroyed. 02819_ Penetrated by Slug. 02819_ Cld. Antigrav System destroyed. 02822_ Cmb. Gravmag System destroyed. Map ----- +----------------------------------------------------+ | | | | | | | ?????????????????????????????????????????????????? | | ?????????????????????????????????????????????????? | | ?????????????????????????????????????????????????? | | ?????????????????????????????????????????????????? | | ?????????????????????????????????????????????????? | | ?????????????????????????????????????????????????? | | ?????????????????????????????????????????????????? | | ?????????????????????????????????????????????????? | | ?????????????????????????????????????????????????? | | ?????????????????????????????????????????????????? | | ?????????????????????????????????????????????????? | | ????????????????????###########??????????????????? | | ????????????????????# #??????????????????? | | ????????????????????# #???????????######?? | | ????????????????????#!! #??????????# *![?? | | ????????????????????#! #??????????# !![#? | | ????????????????????# #??????????# ![[#? | | ????????????????????# #??????????# #? | | ????????????????????# ############ # | | ????????????????????# # ## # | | ????????????????????#####+##### ## # | | ?????????????????????# ## ## # | | ?????????????????????# @ ## """"" ## # | | ?????????????????????# ## """"" ## # | | ?????????????????????# ## """"" ## # | | ???????????????########## ## #? # | | ???????????????# # ## #??? #? | | ???????????????# # ###+#############+### | | ???????????????# + | | ???????????????# # | | ???????????????# # | | ???????????????# # ^ | | ???????????????# """ ######## ^ ####### | | ???????????????# """ #??????# " " #? | | ???????????????# """ #??????# "G" #? | | ???????????????##########??????# " # = | | ???????????????????????????????# # | | ???????????????????????????????# + ] !! | | ???????????????????????????????# # !! | | ???????????????????????????????####""Y""#### ! | | ??????????????????????????????????#"""""#???? | | ??????????????????????????????????#######???? ! | | ??????????????????????????????????????????????#### | | ?????????????????????????????????????????????????? | | ?????????????????????????????????????????????????? | | ?????????????????????????????????????????????????? | | ?????????????????????????????????????????????????? | +----------------------------------------------------+ Best States ------------- Heat Dissipation 49 Energy Generation 21 Energy Capacity 250 Matter Stores 300 Matter Capacity 300 Sight Range 16 Robot Scan Range 16 Terrain Scan Range 16 Terrain Scan Density 210 ECM Strength 1 Jamming Range 16 Cloak Strength 2 Power Amplification 20 Evasion (%) 63 Offensive Hacking 20 Item Schematics ----------------- Rocket Launcher | -8/Materials | Scanalyzed Flight Unit | -7/Factory | Scanalyzed Imp. Signal Interpreter | -7/Factory | Scanalyzed Lgt. Ion Engine | -6/Factory | Scanalyzed Robot Schematics ------------------ None Fabricated ------------ Nothing Repaired ---------- Flight Unit | 99% | -6/Factory | Broken Adv. Signal Interpreter | 99% | -5/Factory | Broken Studied --------- VTOL Module | -8/Materials | Hacked Flight Unit | -7/Factory | Hacked Lgt. Ion Engine | -7/Factory | Hacked Med. Laser | -6/Factory | Hacked Alien Tech Used ----------------- None Achievements -------------- Fitting Room Resistances Are Futile Challenges ------------ None Game ------ Seed OpticalControlNanosword Manual? 0 Play Time 01:29:31 Cumulative 90.8 hours Start 2025.10.23 @ 21:12:16 End 2025.10.29 @ 18:54:27 Sessions 2 Manual Loads 0 Difficulty Rogue Special Mode None Game No. 86 Rogue 86 Adventurer 0 Explorer 0 Win Type - Total 0 Types 0/0/0/0/0/0/0/0/0/0 Lore% 16 Gallery% 33 Achievement% 23 Wizard Run 0 Options --------- Layout 1 ASCII 1 Keyboard 1 Movement Vi Keybinds 1 Fullscreen 1 Font 32/SmallcapsGlow Map View 50x35 Zoom Use 0% Tactical HUD 1 Map Filters NONE Filters NONE Steam 1 RUN: 68ff8d8b-2b3e-4da5-9799-d2f57fdc0cc1